bitfinex-derivatives/quotes_BTCF0:USTF0_20241021
["timestamp","ask_amount","ask_price","bid_price","bid_amount"]
[1729514099397,0.074181,68354.0,68353.0,0.101182]
[1729514099590,0.075181,68354.0,68353.0,0.101182]
[1729514100503,0.435981,68354.0,68353.0,0.08642681]
[1729514100699,0.435981,68354.0,68353.0,0.028]
[1729514100892,0.435981,68354.0,68353.0,0.0718268]
[1729514101695,0.435981,68354.0,68353.0,0.028]
[1729514102001,0.435981,68354.0,68348.0,0.01329495]
[1729514102002,0.073186,68349.0,68348.0,0.01329495]
[1729514102309,0.073186,68349.0,68344.0,0.05842681]
[1729514102310,0.073191,68345.0,68344.0,0.05842681]
[1729514102610,0.433991,68345.0,68344.0,0.05842681]
[1729514102789,0.433991,68345.0,68343.0,0.09162681]
[1729514102790,0.3608,68345.0,68343.0,0.09162681]
[1729514102993,0.073192,68344.0,68343.0,0.10760744]
[1729514103798,0.073192,68344.0,68343.0,0.04918063]
[1729514104205,0.073192,68344.0,68343.0,0.05918063]
[1729514105603,0.074192,68344.0,68343.0,0.05918063]
[1729514105807,0.075192,68344.0,68343.0,0.04918063]
[1729514106708,0.074192,68344.0,68343.0,0.04918063]
[1729514106908,0.075192,68344.0,68343.0,0.04918063]
[1729514107905,0.074192,68344.0,68343.0,0.04918063]
[1729514108107,0.075192,68344.0,68343.0,0.04918063]
[1729514109298,0.075192,68344.0,68343.0,0.12237363]
[1729514111817,0.075192,68344.0,68343.0,0.19546146]
[1729514112415,0.075192,68344.0,68343.0,0.30704074]
[1729514113114,0.075192,68344.0,68343.0,0.30703965]
[1729514114817,0.075192,68344.0,68343.0,0.19546146]
[1729514115002,0.075192,68344.0,68343.0,0.12237363]
[1729514115208,0.075192,68344.0,68343.0,0.30704167]
[1729514115413,0.075192,68344.0,68343.0,0.19546146]
[1729514115606,0.03855971,68344.0,68343.0,0.19546146]
[1729514115804,0.03855971,68344.0,68343.0,0.12226846]
[1729514116212,0.03855971,68344.0,68343.0,0.01598063]
[1729514116417,0.03855971,68344.0,68342.0,0.14628083]
[1729514116418,0.002,68344.0,68342.0,0.07308783]
[1729514116619,0.073193,68343.0,68342.0,0.07308783]
[1729514116816,0.073193,68343.0,68342.0,0.18467009]
[1729514118414,0.073193,68343.0,68342.0,0.14628183]
[1729514118926,0.073193,68343.0,68338.0,0.01614652]
[1729514118927,0.54801033,68343.0,68338.0,0.01614652]
[1729514119109,0.073199,68337.0,68336.0,0.0319]
[1729514119622,0.073199,68337.0,68336.0,0.12137092]
[1729514120120,0.073199,68337.0,68336.0,0.04817092]
[1729514120518,0.075199,68337.0,68336.0,0.04817092]
[1729514121415,0.075199,68337.0,68336.0,0.12137092]
[1729514125517,0.075199,68337.0,68336.0,0.04817092]
[1729514129327,0.002,68337.0,68336.0,0.12137092]
[1729514133325,0.075199,68337.0,68336.0,0.12137092]
[1729514133918,0.15600372,68337.0,68336.0,0.12137092]
[1729514135133,0.075199,68337.0,68336.0,0.12137092]
[1729514136837,0.075199,68337.0,68336.0,0.04817092]
[1729514137329,0.07321,68329.0,68328.0,0.073209]
[1729514137523,0.073209,68328.0,68327.0,0.0331]
[1729514138229,0.1181651,68328.0,68327.0,0.0331]
[1729514138429,0.073215,68322.0,68321.0,0.01646419]
[1729514138734,0.073217,68320.0,68319.0,0.073218]
[1729514139031,0.1181731,68320.0,68319.0,0.073218]
[1729514139933,0.1191731,68320.0,68319.0,0.0897493]
[1729514140324,0.1201731,68320.0,68319.0,0.0897493]
[1729514141135,0.075217,68320.0,68319.0,0.0897493]
[1729514143534,0.075217,68320.0,68319.0,0.0165313]
[1729514143724,0.075217,68320.0,68315.0,0.0331]
[1729514143926,0.434022,68316.0,68315.0,0.0331]
[1729514144234,0.07323,68308.0,68307.0,0.073231]
[1729514144428,0.07323,68308.0,68307.0,0.104731]
[1729514145932,0.07423,68308.0,68307.0,0.104731]
[1729514146332,0.07523,68308.0,68304.0,0.02020892]
[1729514146634,0.07523,68308.0,68304.0,0.0314]
[1729514146635,0.073234,68305.0,68304.0,0.0314]
[1729514149642,0.074234,68305.0,68304.0,0.0314]
[1729514149937,0.075234,68305.0,68304.0,0.0314]
[1729514155230,0.075234,68305.0,68297.0,0.0309]
[1729514155231,0.3628,68305.0,68297.0,0.0309]
[1729514155432,0.434041,68298.0,68295.0,0.0311]
[1729514156341,0.073243,68296.0,68295.0,0.0311]
[1729514156936,0.073243,68296.0,68280.0,0.09784]
[1729514157145,0.073255,68285.0,68284.0,0.073255]
[1729514158347,0.074255,68285.0,68284.0,0.073255]
[1729514159539,0.075255,68285.0,68284.0,0.073255]
[1729514161154,0.073258,68282.0,68281.0,0.103457]
[1729514161353,0.073258,68282.0,68281.0,0.0302]
[1729514162041,0.073258,68282.0,68281.0,0.103459]
[1729514162237,0.074258,68282.0,68281.0,0.103459]
[1729514162746,0.075258,68282.0,68281.0,0.103459]
[1729514163749,0.03859663,68282.0,68281.0,0.0302]
[1729514164344,0.03859663,68282.0,68276.0,0.05838822]
[1729514164345,0.39939663,68282.0,68276.0,0.05838822]
[1729514164544,0.073268,68275.0,68274.0,0.073266]
[1729514165949,0.001,68275.0,68274.0,0.073266]
[1729514166151,0.001,68275.0,68274.0,0.12617643]
[1729514167551,0.3608,68295.0,68277.0,0.073263]
[1729514167743,0.073252,68288.0,68287.0,0.073253]
[1729514169052,0.076252,68288.0,68287.0,0.073253]
[1729514169640,0.003,68288.0,68287.0,0.073253]
[1729514170848,0.006,68288.0,68287.0,0.073253]
[1729514171452,0.003,68288.0,68287.0,0.073253]
[1729514171757,0.077252,68288.0,68287.0,0.073253]
[1729514171959,0.004,68288.0,68287.0,0.073253]
[1729514172657,0.077252,68288.0,68287.0,0.073253]
[1729514172853,0.074252,68288.0,68287.0,0.073253]
[1729514173047,0.075252,68288.0,68287.0,0.073253]
[1729514173449,0.002,68288.0,68287.0,0.073253]
[1729514175154,0.002,68288.0,68287.0,0.09421846]
[1729514175354,0.002,68288.0,68287.0,0.31438446]
[1729514176355,0.3608,68295.0,68294.0,0.073245]
[1729514176545,0.073231,68307.0,68306.0,0.073231]
[1729514177254,0.073231,68307.0,68297.0,0.09784]
[1729514177255,0.3608,68308.0,68307.0,0.073231]
[1729514177455,0.073234,68305.0,68304.0,0.073234]
[1729514177750,0.3608,68308.0,68298.0,0.21883289]
[1729514177952,0.3608,68308.0,68297.0,0.09784]
[1729514177953,0.3608,68308.0,68307.0,0.073231]
[1729514178256,0.43403,68308.0,68307.0,0.073231]
[1729514179459,0.43903,68308.0,68307.0,0.073231]
[1729514180457,0.44303,68308.0,68307.0,0.073231]
[1729514180762,0.3698,68308.0,68301.0,0.0306]
[1729514180964,0.073234,68305.0,68304.0,0.073235]
[1729514181551,0.073234,68305.0,68300.0,0.0309]
[1729514181552,0.3698,68308.0,68300.0,0.0309]
[1729514181849,0.3608,68301.0,68290.0,0.09784]
[1729514182059,0.073245,68294.0,68290.0,0.171089]
[1729514182263,0.073249,68291.0,68290.0,0.171089]
[1729514182652,0.073249,68291.0,68290.0,0.073249]
[1729514183055,0.3608,68295.0,68286.0,0.13004]
[1729514183256,0.073247,68293.0,68292.0,0.073246]
[1729514184368,0.076247,68293.0,68292.0,0.073246]
[1729514185867,0.079247,68293.0,68292.0,0.073246]
[1729514195474,0.12422219,68293.0,68292.0,0.073246]
[1729514200769,0.12422218,68293.0,68292.0,0.073246]
[1729514201979,0.079247,68293.0,68292.0,0.073246]
[1729514209072,0.12422345,68293.0,68292.0,0.073246]
[1729514210978,0.079247,68293.0,68292.0,0.073246]
[1729514211187,0.1242227,68293.0,68292.0,0.073246]
[1729514215280,0.079247,68293.0,68292.0,0.073246]
[1729514215469,0.073253,68287.0,68286.0,0.105453]
[1729514215675,0.47902963,68287.0,68286.0,0.105453]
[1729514216173,0.47903313,68287.0,68286.0,0.12597301]
[1729514216881,0.47903313,68287.0,68286.0,0.12697301]
[1729514217084,0.434053,68287.0,68286.0,0.12697301]
[1729514217470,0.434053,68287.0,68286.0,0.12897301]
[1729514218380,0.434053,68287.0,68286.0,0.12697301]
[1729514218584,0.434053,68287.0,68286.0,0.12797301]
[1729514219175,0.434053,68287.0,68286.0,0.12697301]
[1729514219374,0.434053,68287.0,68286.0,0.12797301]
[1729514222987,0.073253,68287.0,68286.0,0.12797301]
[1729514226777,0.11823321,68287.0,68286.0,0.12797301]
[1729514228594,0.073253,68287.0,68286.0,0.12797301]
[1729514229589,0.11823269,68287.0,68286.0,0.12797301]
[1729514229995,0.1182328,68287.0,68286.0,0.12797301]
[1729514230195,0.1182328,68287.0,68286.0,0.0342]
[1729514230196,0.073253,68287.0,68286.0,0.0342]
[1729514230399,0.073253,68287.0,68264.0,0.00096092]
[1729514230400,0.07326,68281.0,68280.0,0.073259]
[1729514231889,0.07426,68281.0,68280.0,0.002]
[1729514232294,0.07526,68281.0,68280.0,0.003]
[1729514232482,0.47336,68281.0,68269.0,0.0305]
[1729514232680,0.073271,68270.0,68269.0,0.0305]
[1729514233992,0.074271,68270.0,68269.0,0.0305]
[1729514234697,0.073272,68269.0,68258.0,0.04388662]
[1729514234889,0.073287,68255.0,68254.0,0.0302]
[1729514235081,0.434083,68259.0,68257.0,0.073285]
[1729514235287,0.3608,68259.0,68254.0,0.0302]
[1729514235487,0.3608,68259.0,68254.0,0.05091491]
[1729514235488,0.073285,68257.0,68254.0,0.05091491]
[1729514235689,0.073285,68257.0,68255.0,0.073287]
[1729514235885,0.3608,68259.0,68254.0,0.05091491]
[1729514236091,0.073287,68255.0,68254.0,0.05091491]
[1729514236892,0.074287,68255.0,68254.0,0.05091491]
[1729514238996,0.075287,68255.0,68254.0,0.05091491]
[1729514240390,0.075287,68255.0,68254.0,0.12420291]
[1729514241402,0.002,68255.0,68254.0,0.48500291]
[1729514241598,0.3608,68265.0,68254.0,0.70607702]
[1729514241905,0.073281,68261.0,68260.0,0.073279]
[1729514242102,0.434077,68265.0,68264.0,0.073278]
[1729514242406,0.3608,68265.0,68264.0,0.073278]
[1729514245614,0.3608,68265.0,68264.0,0.09368841]
[1729514246102,0.434076,68265.0,68264.0,0.09368841]
[1729514249200,0.434076,68265.0,68264.0,0.02041041]
[1729514249400,0.073279,68263.0,68261.0,0.07328]
[1729514249807,0.07328,68262.0,68261.0,0.07328]
[1729514250109,0.073284,68259.0,68258.0,0.073284]
[1729514250415,0.3608,68265.0,68254.0,0.50905462]
[1729514250416,0.073287,68255.0,68254.0,0.50905462]
[1729514250607,0.073287,68255.0,68254.0,0.50817462]
[1729514250809,0.073287,68255.0,68254.0,0.0302]
[1729514251401,0.073287,68255.0,68254.0,0.05091819]
[1729514251906,0.074287,68255.0,68254.0,0.05091819]
[1729514252406,0.074287,68255.0,68254.0,0.0302]
[1729514253002,0.073293,68250.0,68246.0,0.00092]
[1729514253309,0.073293,68250.0,68241.0,0.07550005]
[1729514253310,0.073299,68244.0,68242.0,0.04378431]
[1729514253498,0.073299,68244.0,68243.0,0.0733]
[1729514254209,0.073301,68243.0,68241.0,0.00219805]
[1729514254513,0.073301,68242.0,68241.0,0.00219805]
[1729514254813,0.073301,68242.0,68241.0,0.07550005]
[1729514255809,0.001,68244.0,68243.0,0.0733]
[1729514255810,0.002,68244.0,68243.0,0.0733]
[1729514256113,0.0733,68243.0,68242.0,0.04378188]
[1729514256411,0.001,68244.0,68240.0,0.073303]
[1729514256607,0.001,68243.0,68240.0,0.073303]
[1729514256909,0.001,68243.0,68237.0,0.42019549]
[1729514256910,0.001,68243.0,68237.0,0.00088]
[1729514257107,0.4406,68244.0,68227.0,0.05851549]
[1729514257108,0.3608,68238.0,68227.0,0.05851549]
[1729514257305,0.0321,68237.0,68229.0,0.073315]
[1729514257535,0.0321,68237.0,68224.0,0.27958179]
[1729514257711,0.0321,68237.0,68225.0,0.05851549]
[1729514257712,0.0317,68236.0,68225.0,0.05851549]
[1729514258211,0.0317,68236.0,68224.0,0.02081083]
[1729514258212,0.0317,68236.0,68226.0,0.05851549]
[1729514259012,0.0327,68236.0,68226.0,0.05851549]
[1729514259408,0.001,68236.0,68226.0,0.13183249]
[1729514260208,0.002,68236.0,68228.0,0.073316]
[1729514260914,0.002,68236.0,68229.0,0.073315]
[1729514261323,0.002,68236.0,68226.0,0.05851549]
[1729514261621,0.032,68235.0,68226.0,0.073318]
[1729514261808,0.002,68236.0,68227.0,0.0307]
[1729514262320,0.002,68236.0,68231.0,0.073312]
[1729514262510,0.001,68236.0,68232.0,0.0315]
[1729514262715,0.002,68236.0,68232.0,0.0315]
[1729514263521,0.3618,68236.0,68232.0,0.0315]
[1729514263707,0.3618,68236.0,68232.0,0.104812]
[1729514263708,0.3628,68236.0,68232.0,0.104812]
[1729514264112,0.3618,68236.0,68232.0,0.0315]
[1729514264321,0.3618,68236.0,68233.0,0.073311]
[1729514264322,0.3628,68236.0,68233.0,0.073311]
[1729514264520,0.3618,68236.0,68233.0,0.073311]
[1729514264824,0.3618,68236.0,68232.0,0.0315]
[1729514264825,0.3628,68236.0,68235.0,0.073309]
[1729514265314,0.3618,68236.0,68235.0,0.073309]
[1729514265620,0.002,68236.0,68235.0,0.073309]
[1729514266215,0.3608,68250.0,68245.0,0.073297]
[1729514266413,0.08293877,68253.0,68245.0,0.073297]
[1729514266720,0.3608,68252.0,68234.0,0.3608]
[1729514266931,0.3608,68252.0,68246.0,0.073296]
[1729514267223,0.3608,68252.0,68235.0,0.22000158]
[1729514267423,0.002,68250.0,68249.0,0.073294]
[1729514267828,0.3608,68252.0,68249.0,0.073294]
[1729514268119,0.3648,68252.0,68249.0,0.073294]
[1729514268512,0.3648,68252.0,68234.0,0.342903]
[1729514268725,0.002,68250.0,68235.0,0.073309]
[1729514268925,0.002,68250.0,68236.0,0.21917615]
[1729514269227,0.002,68250.0,68242.0,0.073301]
[1729514269616,0.004,68250.0,68243.0,0.0733]
[1729514270117,0.002,68250.0,68245.0,0.073298]
[1729514270316,0.004,68250.0,68245.0,0.073298]
[1729514270521,0.002,68250.0,68245.0,0.073298]
[1729514270721,0.073292,68251.0,68245.0,0.073298]
[1729514271019,0.3628,68250.0,68245.0,0.073298]
[1729514271328,0.073294,68249.0,68245.0,0.073298]
[1729514271710,0.3648,68250.0,68236.0,0.17206708]
[1729514272027,0.073295,68248.0,68236.0,0.17206708]
[1729514272320,0.073297,68246.0,68241.0,0.073302]
[1729514272509,0.3628,68250.0,68241.0,0.073302]
[1729514272510,0.073298,68245.0,68241.0,0.073302]
[1729514272711,0.073299,68244.0,68241.0,0.073302]
[1729514273107,0.074294,68249.0,68243.0,0.0733]
[1729514273321,0.001,68249.0,68236.0,0.05838708]
[1729514273521,0.001,68249.0,68234.0,0.42216688]
[1729514273522,0.073299,68244.0,68234.0,0.42216688]
[1729514273726,0.073299,68244.0,68241.0,0.001]
[1729514274221,0.073299,68244.0,68240.0,0.073303]
[1729514274417,0.073299,68244.0,68242.0,0.073301]
[1729514275517,0.073296,68247.0,68243.0,0.0733]
[1729514275718,0.073297,68246.0,68243.0,0.0733]
[1729514276928,0.0450099,68245.0,68243.0,0.0733]
[1729514277115,0.0450099,68244.0,68243.0,0.0733]
[1729514277825,0.4791089,68244.0,68243.0,0.002]
[1729514279421,0.47911235,68244.0,68243.0,0.002]
[1729514280824,0.53171162,68244.0,68243.0,0.002]
[1729514281134,0.5317114,68244.0,68243.0,0.002]
[1729514281336,0.9713114,68244.0,68243.0,0.002]
[1729514283724,0.9916558,68244.0,68243.0,0.002]
[1729514285043,0.8940434,68244.0,68243.0,0.002]
[1729514285222,0.4544434,68244.0,68243.0,0.002]
[1729514285421,0.434099,68244.0,68243.0,0.002]
[1729514289933,0.873699,68244.0,68243.0,0.002]
[1729514290132,0.873699,68244.0,68228.0,0.073315]
[1729514290133,0.3608,68244.0,68228.0,0.073315]
[1729514290432,0.3608,68229.0,68228.0,0.073315]
[1729514291333,0.3608,68229.0,68228.0,0.074315]
[1729514291927,0.40581931,68229.0,68228.0,0.074315]
[1729514292823,0.40681931,68229.0,68228.0,0.074315]
[1729514293227,0.40681931,68229.0,68228.0,0.073315]
[1729514293228,0.40781931,68229.0,68228.0,0.073315]
[1729514293436,0.40781931,68229.0,68228.0,0.103715]
[1729514295740,0.48113431,68229.0,68228.0,0.0304]
[1729514296941,0.5337401,68229.0,68228.0,0.0304]
[1729514298331,0.53374121,68229.0,68228.0,0.0304]
[1729514299835,0.436115,68229.0,68228.0,0.0304]
[1729514300734,0.07332,68224.0,68223.0,0.02036326]
[1729514300929,0.073322,68223.0,68222.0,0.0363]
[1729514303047,0.074322,68223.0,68222.0,0.0363]
[1729514303433,0.074322,68223.0,68222.0,0.05705952]
[1729514304342,0.074322,68223.0,68222.0,0.13038252]
[1729514304528,0.075322,68223.0,68222.0,0.13038252]
[1729514305244,0.075322,68223.0,68222.0,0.05705952]
[1729514305631,0.075322,68223.0,68222.0,0.13038252]
[1729514305828,0.075322,68223.0,68222.0,0.05705952]
[1729514307252,0.075322,68223.0,68222.0,0.005]
[1729514310447,0.00219935,68237.0,68222.0,0.66502361]
[1729514310646,0.00219935,68237.0,68233.0,0.073311]
[1729514310647,0.07550635,68237.0,68233.0,0.073311]
[1729514310854,0.07550635,68237.0,68234.0,0.0645]
[1729514311032,0.07550635,68237.0,68235.0,0.073309]
[1729514311033,0.00219935,68237.0,68235.0,0.073309]
[1729514311238,0.00219935,68237.0,68234.0,0.0645]
[1729514311642,0.073309,68235.0,68234.0,0.0645]
[1729514312251,0.00419935,68237.0,68234.0,0.0645]
[1729514312252,0.00619935,68237.0,68234.0,0.0645]
[1729514312436,0.00419935,68237.0,68234.0,0.0645]
[1729514312642,0.00619935,68237.0,68236.0,0.073308]
[1729514312837,0.002,68237.0,68236.0,0.073308]
[1729514313150,0.0733,68244.0,68234.0,0.42618]
[1729514313341,0.073301,68243.0,68240.0,0.073302]
[1729514314236,0.073301,68243.0,68236.0,0.001]
[1729514314237,0.3608,68246.0,68236.0,0.001]
[1729514314446,0.3608,68246.0,68237.0,0.073306]
[1729514314745,0.073305,68239.0,68237.0,0.073306]
[1729514314947,0.3608,68246.0,68236.0,0.002]
[1729514314948,0.04501132,68238.0,68236.0,0.002]
[1729514315140,0.47911832,68237.0,68236.0,0.001]
[1729514315547,0.073309,68235.0,68234.0,0.0645]
[1729514315751,0.073315,68229.0,68225.0,0.11624]
[1729514315945,0.04501364,68229.0,68224.0,0.02000463]
[1729514316154,0.04501364,68228.0,68223.0,0.0647]
[1729514316353,0.04501364,68227.0,68223.0,0.0647]
[1729514316561,0.3608,68231.0,68223.0,0.0647]
[1729514316562,0.04501364,68226.0,68223.0,0.0647]
[1729514316855,0.04501364,68225.0,68224.0,0.29191591]
[1729514317053,0.001,68229.0,68225.0,0.073319]
[1729514317254,0.04501564,68228.0,68227.0,0.434117]
[1729514317445,0.07331,68234.0,68227.0,0.3608]
[1729514317645,0.07331,68234.0,68229.0,0.073315]
[1729514317951,0.07331,68234.0,68230.0,0.0302]
[1729514318265,0.07331,68234.0,68233.0,0.073311]
[1729514319043,0.00219853,68243.0,68230.0,0.0302]
[1729514319546,0.3608,68237.0,68234.0,0.07331]
[1729514319745,0.07331,68234.0,68233.0,0.001]
[1729514319947,0.07331,68234.0,68233.0,0.002]
[1729514320546,0.07331,68234.0,68233.0,0.001]
[1729514320745,0.07332,68225.0,68223.0,0.105721]
[1729514320957,0.07332,68224.0,68223.0,0.105721]
[1729514321262,0.07332,68224.0,68223.0,0.0324]
[1729514322562,0.07332,68224.0,68223.0,0.105722]
[1729514323062,0.07432,68224.0,68223.0,0.106722]
[1729514323362,0.07532,68224.0,68223.0,0.108722]
[1729514323659,0.07532,68224.0,68223.0,0.0354]
[1729514323860,0.07532,68224.0,68223.0,0.003]
[1729514326958,0.10852,68224.0,68223.0,0.003]
[1729514328151,0.16992,68224.0,68223.0,0.003]
[1729514330358,0.16992,68224.0,68208.0,0.073338]
[1729514330359,0.073337,68209.0,68208.0,0.05854575]
[1729514330667,0.073337,68209.0,68208.0,0.073338]
[1729514331756,0.074337,68209.0,68208.0,0.074338]
[1729514331963,0.075337,68209.0,68208.0,0.074338]
[1729514334465,0.075337,68209.0,68208.0,0.001]
[1729514335171,0.075337,68209.0,68208.0,0.074338]
[1729514337076,0.075337,68209.0,68208.0,0.001]
[1729514338277,0.074337,68209.0,68200.0,0.01]
[1729514338462,0.073345,68201.0,68200.0,0.01]
[1729514338663,0.001,68209.0,68200.0,0.01]
[1729514338868,0.073343,68203.0,68201.0,0.073345]
[1729514339371,0.073343,68203.0,68200.0,0.01]
[1729514339568,0.001,68201.0,68200.0,0.083346]
[1729514339778,0.002,68201.0,68200.0,0.083346]
[1729514340168,0.002,68201.0,68200.0,0.01]
[1729514340365,0.001,68201.0,68200.0,0.01]
[1729514340568,0.001,68201.0,68200.0,0.74416842]
[1729514341277,0.002,68203.0,68202.0,0.073344]
[1729514341471,0.002,68203.0,68202.0,0.434144]
[1729514341779,0.075343,68203.0,68202.0,0.434144]
[1729514341979,0.075343,68203.0,68202.0,0.3608]
[1729514342277,0.073343,68203.0,68202.0,0.3608]
[1729514342782,0.074343,68203.0,68202.0,0.3608]
[1729514342974,0.075343,68203.0,68202.0,0.3608]
[1729514346872,0.073345,68201.0,68200.0,0.01]
[1729514347080,0.073345,68201.0,68191.0,0.0618]
[1729514347081,0.073351,68196.0,68177.0,0.05854575]
[1729514347278,0.073351,68196.0,68163.0,0.16120462]
[1729514347279,0.3608,68181.0,68168.0,0.05854575]
[1729514347463,0.3608,68181.0,68172.0,0.22117627]
[1729514347663,0.073362,68186.0,68169.0,0.00092]
[1729514347664,0.073375,68173.0,68169.0,0.00092]
[1729514347864,0.434174,68174.0,68173.0,0.073375]
[1729514348066,0.434174,68174.0,68170.0,0.22117627]
[1729514348067,0.3608,68174.0,68170.0,0.22117627]
[1729514348281,0.073377,68171.0,68170.0,0.073377]
[1729514348465,0.3608,68174.0,68172.0,0.073376]
[1729514348776,0.073375,68173.0,68172.0,0.073376]
[1729514349379,0.3628,68174.0,68168.0,0.14029207]
[1729514349676,0.3628,68174.0,68153.0,0.05854575]
[1729514349677,0.3608,68172.0,68153.0,0.05854575]
[1729514349988,0.073398,68152.0,68151.0,0.07573405]
[1729514350278,0.3608,68159.0,68152.0,0.22130833]
[1729514350279,0.073394,68156.0,68152.0,0.22130833]
[1729514350483,0.3608,68165.0,68152.0,0.22130833]
[1729514350667,0.073392,68158.0,68151.0,0.07573405]
[1729514350863,0.3608,68165.0,68151.0,0.07573405]
[1729514350864,0.073389,68161.0,68158.0,0.073391]
[1729514351071,0.073389,68161.0,68152.0,0.22130833]
[1729514351267,0.3608,68159.0,68151.0,0.07573405]
[1729514351464,0.073394,68157.0,68153.0,0.073396]
[1729514351669,0.3608,68159.0,68151.0,0.07573405]
[1729514352284,0.434191,68159.0,68152.0,0.073398]
[1729514352471,0.435191,68159.0,68158.0,0.073391]
[1729514352783,0.3618,68159.0,68158.0,0.073391]
[1729514352981,0.3628,68159.0,68158.0,0.073391]
[1729514353283,0.3628,68159.0,68158.0,0.77531214]
[1729514353284,0.001,68159.0,68158.0,0.77531214]
[1729514353469,0.001,68159.0,68158.0,1.21547214]
[1729514353470,0.002,68159.0,68158.0,1.21547214]
[1729514353670,0.3608,68165.0,68164.0,0.073385]
[1729514354584,0.3608,68165.0,68158.0,0.00088]
[1729514354585,0.073388,68161.0,68158.0,0.00088]
[1729514354768,0.3608,68165.0,68151.0,0.0963121]
[1729514355098,0.3608,68165.0,68162.0,0.073386]
[1729514355474,0.07339,68159.0,68158.0,0.001]
[1729514355775,0.43419,68159.0,68158.0,0.001]
[1729514356573,0.3608,68159.0,68151.0,0.05013005]
[1729514356771,0.3608,68159.0,68151.0,0.17005005]
[1729514357168,0.3608,68152.0,68151.0,0.05013005]
[1729514357373,0.434198,68152.0,68151.0,0.05013005]
[1729514357882,0.3608,68152.0,68151.0,0.12352905]
[1729514358675,0.3618,68152.0,68151.0,0.12552905]
[1729514359285,0.3628,68152.0,68151.0,0.12552905]
[1729514360078,0.3113746,68152.0,68151.0,0.12552905]
[1729514360278,0.3847726,68152.0,68151.0,0.05213005]
[1729514361286,0.073402,68148.0,68140.0,0.3608]
[1729514361487,0.3113746,68152.0,68140.0,0.3608]
[1729514361678,0.3113746,68152.0,68149.0,0.073401]
[1729514361877,0.3113746,68152.0,68150.0,0.0734]
[1729514362182,0.3113746,68152.0,68151.0,0.074399]
[1729514362183,0.26729402,68152.0,68151.0,0.074399]
[1729514362486,0.26729402,68152.0,68151.0,0.35893133]
[1729514362686,0.26629402,68152.0,68151.0,0.35893133]
[1729514362872,0.002,68152.0,68151.0,0.35793133]
[1729514363493,0.3608,68165.0,68151.0,0.74474767]
[1729514363678,0.3608,68165.0,68162.0,0.3608]
[1729514363679,0.073384,68165.0,68162.0,0.3608]
[1729514363884,0.00220174,68166.0,68164.0,0.073384]
[1729514364687,0.00220174,68166.0,68162.0,0.3608]
[1729514364688,0.00220174,68166.0,68156.0,0.3608]
[1729514364888,0.00220174,68166.0,68165.0,0.073384]
[1729514366793,0.00220174,68166.0,68165.0,0.41418365]
[1729514367184,0.00220174,68166.0,68165.0,0.193344]
[1729514367487,0.00320174,68166.0,68165.0,0.193344]
[1729514367992,0.00420174,68166.0,68165.0,0.194344]
[1729514368292,0.00420174,68166.0,68165.0,0.41295486]
[1729514368491,0.00420174,68166.0,68165.0,0.41195486]
[1729514368492,0.00320174,68166.0,68165.0,0.41195486]
[1729514368699,0.00420174,68166.0,68165.0,0.41295486]
[1729514369398,0.00320174,68166.0,68165.0,0.41195486]
[1729514369587,0.00420174,68166.0,68165.0,0.41295486]
[1729514370113,0.00320174,68166.0,68165.0,0.41295486]
[1729514370294,0.00320174,68166.0,68165.0,0.194344]
[1729514370295,0.00420174,68166.0,68165.0,0.194344]
[1729514370984,0.00320174,68166.0,68165.0,0.073384]
[1729514371188,0.00420174,68166.0,68165.0,0.193344]
[1729514371776,0.00220174,68166.0,68165.0,0.41416285]
[1729514371982,0.00420174,68166.0,68165.0,0.41416285]
[1729514372382,0.00320174,68166.0,68165.0,0.29420285]
[1729514372582,0.00420174,68166.0,68165.0,0.85428285]
[1729514372781,0.0319,68184.0,68165.0,1.14169885]
[1729514372994,0.073366,68182.0,68176.0,0.073372]
[1729514373187,0.073369,68179.0,68177.0,0.07337]
[1729514373385,0.0319,68184.0,68178.0,0.3608]
[1729514373586,0.3608,68187.0,68178.0,0.3608]
[1729514373587,0.3608,68187.0,68179.0,0.11996]
[1729514373791,0.3608,68187.0,68185.0,0.073362]
[1729514373990,0.073364,68184.0,68183.0,0.073364]
[1729514375198,0.073362,68185.0,68183.0,0.073364]
[1729514375498,0.073362,68185.0,68184.0,0.073363]
[1729514375696,0.3608,68187.0,68186.0,0.073361]
[1729514375898,0.43416,68187.0,68186.0,0.073361]
[1729514376694,0.073363,68184.0,68183.0,0.076365]
[1729514377002,0.073363,68184.0,68183.0,0.003]
[1729514378101,0.073363,68184.0,68183.0,0.001]
[1729514378294,0.073363,68184.0,68182.0,0.073365]
[1729514378295,0.3638,68187.0,68182.0,0.073365]
[1729514378482,0.3648,68187.0,68181.0,0.11992]
[1729514378688,0.3618,68187.0,68179.0,0.073369]
[1729514378994,0.3618,68187.0,68178.0,0.43417]
[1729514379302,0.073369,68179.0,68178.0,0.3608]
[1729514379498,0.3608,68187.0,68177.0,0.051188]
[1729514379499,0.3608,68180.0,68177.0,0.051188]
[1729514380096,0.07337,68178.0,68172.0,0.0642]
[1729514380299,0.07337,68178.0,68176.0,0.073372]
[1729514380498,0.3608,68180.0,68173.0,0.12456]
[1729514380797,0.07337,68179.0,68173.0,0.12456]
[1729514381190,0.3608,68180.0,68176.0,0.073371]
[1729514381191,0.07337,68178.0,68176.0,0.073371]
[1729514381390,0.07337,68178.0,68177.0,0.073371]
[1729514382301,0.3608,68180.0,68179.0,0.073369]
[1729514383395,0.3608,68188.0,68179.0,0.22005811]
[1729514383594,0.3608,68194.0,68186.0,0.434161]
[1729514383795,0.04504468,68193.0,68192.0,0.073355]
[1729514384397,0.434154,68194.0,68192.0,0.073355]
[1729514384597,0.3608,68194.0,68193.0,0.073354]
[1729514384808,0.073354,68193.0,68189.0,0.073358]